{"text_format":"1","workbook":"xlsx","n_sheets":3,"sheets":["DATA","Donnees_Listbox1","New_Data"],"not_rendered":{"charts":0,"images":1,"macros":1,"external_links":0,"defined_names":7,"comments":0,"pivot_tables":0},"unopened":[],"bounds":{"document_bytes":16777216,"sheet_cells":100000,"rows_first":2000,"rows_last":500,"rows_between":2000,"halvings":0,"cell_chars":16384,"cell_head_chars":4096},"cells_cut":0,"cells_raw":0,"read":"whole","date_system":"1900"}

{"sheet":"DATA","index":0,"n_rows":143,"n_cols":26,"rows_kept":143,"cut":false,"hidden":false,"merged":[]}
[1,2,3,4,5,6,7,8,9,10,11,12,13,14,15,16,17,18,null,null,null,null,null,null,"B",{"$f":"MATCH(Y1,B:B,0)","v":{"$error":"#N/A"}}]
[]
[]
[]
["Numéro","Nom et Prénom","D/Naissance","Age","Lieu de Naissance","Sexe","S/Familiale","N/Enfants","Adresse","Certificat Obtenu","Lieu de travail","D/Contrat","Ancienneté","D/Instalation","Ancienneté","Notes/Observation","Image"]
[1,"BELHOUCINE  DINE","1980-03-03",41,"BECHAR","Féminin","Marié(e)",6,"Cité Gharrasa N° 310 Béchar","Baccalauréat En Mathématiques Et Médias","BECHAR","25/10/2016","5","25/10/2017","4","Iiiiiiiii"]
[2,"BELHOUCINE  RABIA","1980-03-03",41,"BECHAR","Féminin","Marié(e)",6,"Cité Gharrasa N° 310 Béchar","Baccalauréat En Mathématiques Et Médias","BECHAR","25/10/2016","5","25/10/2017","4","Iiiiiiiii"]
[4,"GKLNLKC","14/12/1980",41,"DCQKSDU","Féminin","Célibataire",0,"Lqdgbcqzeuiv Qiuhvdq","Sciences Socioculturelles","HDCBKJ","2001-05-10","20","15/05/2000","21","//////////"]
[5,"GKLNLKC   FJHFGJH","14/12/1980",41,"DCQKSDU","Féminin","Célibataire",0,"Lqdgbcqzeuiv Qiuhvdq","Sciences Socioculturelles","HDCBKJ","2000-10-05",21,"15/05/2000",21,"//////////"]
[6,"DADI","1975-12-02",46,"TGHJ","Masculin","Marié(e)",2,"Hklklmlkl Lkajzjd Mozakdo","Sciences Socioculturelles","HJGJMKJHK","2000-10-05","21","15/05/2000","21","///////"]
[7,"A B","1980-12-12",41,"ICI","Masculin","Célibataire",0,"Chez Moi","Sciences Socioculturelles","LA BAS","2010-12-12","11","14/12/2010","11","Gzrgezrgegreg"]
[9,"QS DF","1979-02-02",42,"SDF","Masculin","Célibataire",0,"Au Coin","Licence Littérature Et Civilisation Françaises","LA","2010-01-01",11,"2010-01-02",11,"Ah Que Coucou"]
[10,"WX","1988-01-01",33,"SDF","Féminin","Marié(e)",3,"Azertyuu","Baccalauréat En Mathématiques Et Médias","VB","2008-02-01",13,"2008-02-07",13,"dbfbfbb"]
[11,"AERTHJ","2001-01-01",20,"BQB","Masculin","Célibataire",0,"Eb","Baccalauréat En Histoire","FSB","2020-01-01",1,"2020-01-01",1,"dvbds<bsd<b"]
[null,null,null,{"$f":"IF(C15<>\"\",DATEDIF(C15,TODAY(),\"y\"),\"\")","v":""},null,null,null,null,null,null,null,null,{"$f":"IF(L15<>\"\",DATEDIF(L15,TODAY(),\"y\"),\"\")","v":""},null,{"$f":"IF(N15<>\"\",DATEDIF(N15,TODAY(),\"y\"),\"\")","v":""}]
[null,null,null,"",null,null,null,null,null,null,null,null,"",null,""]
[null,null,null,"",null,null,null,null,null,null,null,null,"",null,""]
[null,null,null,"",null,null,null,null,null,null,null,null,"",null,""]
[null,null,null,"",null,null,null,null,null,null,null,null,"",null,""]
[null,null,null,"",null,null,null,null,null,null,null,null,"",null,""]
[null,null,null,"",null,null,null,null,null,null,null,null,"",null,""]
[null,null,null,"",null,null,null,null,null,null,null,null,"",null,""]
[null,null,null,"",null,null,null,null,null,null,null,null,"",null,""]
[null,null,null,"",null,null,null,null,null,null,null,null,"",null,""]
[null,null,null,"",null,null,null,null,null,null,null,null,"",null,""]
[null,null,null,"",null,null,null,null,null,null,null,null,"",null,""]
[null,null,null,"",null,null,null,null,null,null,null,null,"",null,""]
[null,null,null,"",null,null,null,null,null,null,null,null,"",null,""]
[null,null,null,"",null,null,null,null,null,null,null,null,"",null,""]
[null,null,null,"",null,null,null,null,null,null,null,null,"",null,""]
[null,null,null,"",null,null,null,null,null,null,null,null,"",null,""]
[null,null,null,"",null,null,null,null,null,null,null,null,"",null,""]
[null,null,null,"",null,null,null,null,null,null,null,null,"",null,""]
[null,null,null,"",null,null,null,null,null,null,null,null,"",null,""]
[null,null,null,"",null,null,null,null,null,null,null,null,"",null,""]
[null,null,null,"",null,null,null,null,null,null,null,null,"",null,""]
[null,null,null,"",null,null,null,null,null,null,null,null,"",null,""]
[null,null,null,"",null,null,null,null,null,null,null,null,"",null,""]
[null,null,null,"",null,null,null,null,null,null,null,null,"",null,""]
[null,null,null,"",null,null,null,null,null,null,null,null,"",null,""]
[null,null,null,"",null,null,null,null,null,null,null,null,"",null,""]
[null,null,null,"",null,null,null,null,null,null,null,null,"",null,""]
[null,null,null,"",null,null,null,null,null,null,null,null,"",null,""]
[null,null,null,"",null,null,null,null,null,null,null,null,"",null,""]
[null,null,null,"",null,null,null,null,null,null,null,null,"",null,""]
[null,null,null,"",null,null,null,null,null,null,null,null,"",null,""]
[null,null,null,"",null,null,null,null,null,null,null,null,"",null,""]
[null,null,null,"",null,null,null,null,null,null,null,null,"",null,""]
[null,null,null,"",null,null,null,null,null,null,null,null,"",null,""]
[null,null,null,"",null,null,null,null,null,null,null,null,"",null,""]
[null,null,null,"",null,null,null,null,null,null,null,null,"",null,""]
[null,null,null,{"$f":"IF(C52<>\"\",DATEDIF(C52,TODAY(),\"y\"),\"\")","v":""},null,null,null,null,null,null,null,null,{"$f":"IF(L52<>\"\",DATEDIF(L52,TODAY(),\"y\"),\"\")","v":""},null,{"$f":"IF(N52<>\"\",DATEDIF(N52,TODAY(),\"y\"),\"\")","v":""}]
[null,null,null,"",null,null,null,null,null,null,null,null,"",null,""]
[null,null,null,"",null,null,null,null,null,null,null,null,"",null,""]
[null,null,null,"",null,null,null,null,null,null,null,null,"",null,""]
[null,null,null,"",null,null,null,null,null,null,null,null,"",null,""]
[null,null,null,"",null,null,null,null,null,null,null,null,"",null,""]
[null,null,null,"",null,null,null,null,null,null,null,null,"",null,""]
[null,null,null,"",null,null,null,null,null,null,null,null,"",null,""]
[null,null,null,"",null,null,null,null,null,null,null,null,"",null,""]
[null,null,null,"",null,null,null,null,null,null,null,null,"",null,""]
[null,null,null,"",null,null,null,null,null,null,null,null,"",null,""]
[null,null,null,"",null,null,null,null,null,null,null,null,"",null,""]
[null,null,null,"",null,null,null,null,null,null,null,null,"",null,""]
[null,null,null,"",null,null,null,null,null,null,null,null,"",null,""]
[null,null,null,"",null,null,null,null,null,null,null,null,"",null,""]
[null,null,null,"",null,null,null,null,null,null,null,null,"",null,""]
[null,null,null,"",null,null,null,null,null,null,null,null,"",null,""]
[null,null,null,"",null,null,null,null,null,null,null,null,"",null,""]
[null,null,null,"",null,null,null,null,null,null,null,null,"",null,""]
[null,null,null,"",null,null,null,null,null,null,null,null,"",null,""]
[null,null,null,"",null,null,null,null,null,null,null,null,"",null,""]
[null,null,null,"",null,null,null,null,null,null,null,null,"",null,""]
[null,null,null,"",null,null,null,null,null,null,null,null,"",null,""]
[null,null,null,"",null,null,null,null,null,null,null,null,"",null,""]
[null,null,null,"",null,null,null,null,null,null,null,null,"",null,""]
[null,null,null,"",null,null,null,null,null,null,null,null,"",null,""]
[null,null,null,"",null,null,null,null,null,null,null,null,"",null,""]
[null,null,null,"",null,null,null,null,null,null,null,null,"",null,""]
[null,null,null,"",null,null,null,null,null,null,null,null,"",null,""]
[null,null,null,"",null,null,null,null,null,null,null,null,"",null,""]
[null,null,null,"",null,null,null,null,null,null,null,null,"",null,""]
[null,null,null,"",null,null,null,null,null,null,null,null,"",null,""]
[null,null,null,"",null,null,null,null,null,null,null,null,"",null,""]
[null,null,null,"",null,null,null,null,null,null,null,null,"",null,""]
[null,null,null,"",null,null,null,null,null,null,null,null,"",null,""]
[null,null,null,"",null,null,null,null,null,null,null,null,"",null,""]
[null,null,null,"",null,null,null,null,null,null,null,null,"",null,""]
[null,null,null,"",null,null,null,null,null,null,null,null,"",null,""]
[null,null,null,"",null,null,null,null,null,null,null,null,"",null,""]
[null,null,null,"",null,null,null,null,null,null,null,null,"",null,""]
[null,null,null,"",null,null,null,null,null,null,null,null,"",null,""]
[null,null,null,"",null,null,null,null,null,null,null,null,"",null,""]
[null,null,null,"",null,null,null,null,null,null,null,null,"",null,""]
[null,null,null,"",null,null,null,null,null,null,null,null,"",null,""]
[null,null,null,"",null,null,null,null,null,null,null,null,"",null,""]
[null,null,null,"",null,null,null,null,null,null,null,null,"",null,""]
[null,null,null,"",null,null,null,null,null,null,null,null,"",null,""]
[null,null,null,"",null,null,null,null,null,null,null,null,"",null,""]
[null,null,null,"",null,null,null,null,null,null,null,null,"",null,""]
[null,null,null,"",null,null,null,null,null,null,null,null,"",null,""]
[null,null,null,"",null,null,null,null,null,null,null,null,"",null,""]
[null,null,null,"",null,null,null,null,null,null,null,null,"",null,""]
[null,null,null,"",null,null,null,null,null,null,null,null,"",null,""]
[null,null,null,"",null,null,null,null,null,null,null,null,"",null,""]
[null,null,null,"",null,null,null,null,null,null,null,null,"",null,""]
[null,null,null,"",null,null,null,null,null,null,null,null,"",null,""]
[null,null,null,"",null,null,null,null,null,null,null,null,"",null,""]
[null,null,null,"",null,null,null,null,null,null,null,null,"",null,""]
[null,null,null,"",null,null,null,null,null,null,null,null,"",null,""]
[null,null,null,"",null,null,null,null,null,null,null,null,"",null,""]
[null,null,null,"",null,null,null,null,null,null,null,null,"",null,""]
[null,null,null,"",null,null,null,null,null,null,null,null,"",null,""]
[null,null,null,"",null,null,null,null,null,null,null,null,"",null,""]
[null,null,null,"",null,null,null,null,null,null,null,null,"",null,""]
[null,null,null,{"$f":"IF(C116<>\"\",DATEDIF(C116,TODAY(),\"y\"),\"\")","v":""},null,null,null,null,null,null,null,null,{"$f":"IF(L116<>\"\",DATEDIF(L116,TODAY(),\"y\"),\"\")","v":""},null,{"$f":"IF(N116<>\"\",DATEDIF(N116,TODAY(),\"y\"),\"\")","v":""}]
[null,null,null,"",null,null,null,null,null,null,null,null,"",null,""]
[null,null,null,"",null,null,null,null,null,null,null,null,"",null,""]
[null,null,null,"",null,null,null,null,null,null,null,null,"",null,""]
[null,null,null,"",null,null,null,null,null,null,null,null,"",null,""]
[null,null,null,"",null,null,null,null,null,null,null,null,"",null,""]
[null,null,null,"",null,null,null,null,null,null,null,null,"",null,""]
[null,null,null,"",null,null,null,null,null,null,null,null,"",null,""]
[null,null,null,"",null,null,null,null,null,null,null,null,"",null,""]
[null,null,null,"",null,null,null,null,null,null,null,null,"",null,""]
[null,null,null,"",null,null,null,null,null,null,null,null,"",null,""]
[null,null,null,"",null,null,null,null,null,null,null,null,"",null,""]
[null,null,null,"",null,null,null,null,null,null,null,null,"",null,""]
[null,null,null,"",null,null,null,null,null,null,null,null,"",null,""]
[null,null,null,"",null,null,null,null,null,null,null,null,"",null,""]
[null,null,null,"",null,null,null,null,null,null,null,null,"",null,""]
[null,null,null,"",null,null,null,null,null,null,null,null,"",null,""]
[null,null,null,"",null,null,null,null,null,null,null,null,"",null,""]
[null,null,null,"",null,null,null,null,null,null,null,null,"",null,""]
[null,null,null,"",null,null,null,null,null,null,null,null,"",null,""]
[null,null,null,"",null,null,null,null,null,null,null,null,"",null,""]
[null,null,null,"",null,null,null,null,null,null,null,null,"",null,""]
[null,null,null,"",null,null,null,null,null,null,null,null,"",null,""]
[null,null,null,"",null,null,null,null,null,null,null,null,"",null,""]
[null,null,null,"",null,null,null,null,null,null,null,null,"",null,""]
[null,null,null,"",null,null,null,null,null,null,null,null,"",null,""]
[null,null,null,"",null,null,null,null,null,null,null,null,"",null,""]
[null,null,null,"",null,null,null,null,null,null,null,null,"",null,""]

{"sheet":"Donnees_Listbox1","index":1,"n_rows":10,"n_cols":20,"rows_kept":10,"cut":false,"hidden":true,"merged":[]}
[{"$f":"DATA!A5","v":"Numéro"},{"$f":"DATA!B5","v":"Nom et Prénom"},{"$f":"DATA!C5","v":"D/Naissance"},{"$f":"DATA!D5","v":"Age"},{"$f":"DATA!E5","v":"Lieu de Naissance"},{"$f":"DATA!F5","v":"Sexe"},{"$f":"DATA!G5","v":"S/Familiale"},{"$f":"DATA!H5","v":"N/Enfants"},{"$f":"DATA!I5","v":"Adresse"},{"$f":"DATA!J5","v":"Certificat Obtenu"},{"$f":"DATA!K5","v":"Lieu de travail"},{"$f":"DATA!L5","v":"D/Contrat"},{"$f":"DATA!M5","v":"Ancienneté"},{"$f":"DATA!N5","v":"D/Instalation"},{"$f":"DATA!O5","v":"Ancienneté"},{"$f":"DATA!P5","v":"Notes/Observation"},{"$f":"DATA!Q5","v":"Image"},null,null,{"$f":"DATA!B5","v":"Nom et Prénom"}]
[1,"BELHOUCINE  DINE","1980-03-03",41,"BECHAR","Féminin","Marié(e)",6,"Cité Gharrasa N° 310 Béchar","Baccalauréat En Mathématiques Et Médias","BECHAR","25/10/2016","5","25/10/2017","5","Iiiiiiiii",null,null,null,"*"]
[2,"BELHOUCINE  RABIA","1980-03-03",41,"BECHAR","Féminin","Marié(e)",6,"Cité Gharrasa N° 310 Béchar","Baccalauréat En Mathématiques Et Médias","BECHAR","25/10/2016","5","25/10/2017","5","Iiiiiiiii"]
[4,"GKLNLKC","14/12/1980",41,"DCQKSDU","Féminin","Célibataire",0,"Lqdgbcqzeuiv Qiuhvdq","Sciences Socioculturelles","HDCBKJ","2001-05-10","20","15/05/2000","20","//////////"]
[5,"GKLNLKC   FJHFGJH","14/12/1980",41,"DCQKSDU","Féminin","Célibataire",0,"Lqdgbcqzeuiv Qiuhvdq","Sciences Socioculturelles","HDCBKJ","2000-10-05",21,"15/05/2000",21,"//////////"]
[6,"DADI","1975-12-02",46,"TGHJ","Masculin","Marié(e)",2,"Hklklmlkl Lkajzjd Mozakdo","Sciences Socioculturelles","HJGJMKJHK","2000-10-05","21","15/05/2000","21","///////"]
[7,"A B","1980-12-12",41,"ICI","Masculin","Célibataire",0,"Chez Moi","Sciences Socioculturelles","LA BAS","2010-12-12","11","14/12/2010","11","Gzrgezrgegreg"]
[9,"QS DF","1979-02-02",42,"SDF","Masculin","Célibataire",0,"Au Coin","Licence Littérature Et Civilisation Françaises","LA","2010-01-01",11,"2010-01-02",11,"Ah Que Coucou"]
[10,"WX","1988-01-01",33,"SDF","Féminin","Marié(e)",3,"Azertyuu","Baccalauréat En Mathématiques Et Médias","VB","2008-02-01",13,"2008-02-07",13,"dbfbfbb"]
[11,"AERTHJ","2001-01-01",20,"BQB","Masculin","Célibataire",0,"Eb","Baccalauréat En Histoire","FSB","2020-01-01",1,"2020-01-01",1,"dvbds<bsd<b"]

{"sheet":"New_Data","index":2,"n_rows":6,"n_cols":17,"rows_kept":6,"cut":false,"hidden":false,"merged":[]}
[]
[]
[]
[]
["Numéro","Nom et Prénom","D/Naissance","Age","Lieu de Naissance","Sexe","S/Familiale","N/Enfants","Adresse","Certificat Obtenu","Lieu de travail","D/Contrat","Ancienneté","D/Instalation","Ancienneté","Notes/Observation","Image"]
[5,"GKLNLKC   FJHFGJH","14/12/1980",41,"DCQKSDU","Féminin","Célibataire",0,"Lqdgbcqzeuiv Qiuhvdq","Sciences Socioculturelles","HDCBKJ","2000-05-10",21,"15/05/2000",21,"//////////"]